bitfinex-derivatives/quotes_BTCF0:USTF0_20241015
["timestamp","ask_amount","ask_price","bid_price","bid_amount"]
[1729010432762,0.10829269,67207.0,67206.0,0.014]
[1729010432763,0.18270069,67207.0,67206.0,0.014]
[1729010432958,0.074414,67202.0,67183.0,0.3608]
[1729010433257,0.334428,67189.0,67183.0,0.3608]
[1729010433458,0.18172069,67189.0,67188.0,0.074429]
[1729010433656,0.10729269,67189.0,67188.0,0.074429]
[1729010434058,0.10729269,67189.0,67184.0,0.074433]
[1729010434059,0.12407748,67189.0,67184.0,0.074433]
[1729010434258,0.435231,67186.0,67176.0,0.3612]
[1729010434463,0.1655559,67186.0,67185.0,0.00016575]
[1729010434661,0.1655559,67186.0,67185.0,0.07459775]
[1729010435358,0.3608,67193.0,67188.0,0.074429]
[1729010435548,0.005,67186.0,67185.0,0.07559775]
[1729010435748,0.26,67210.0,67202.0,0.074413]
[1729010436063,0.26,67210.0,67202.0,0.074813]
[1729010436259,0.26,67206.0,67202.0,0.0004]
[1729010436451,0.074812,67203.0,67202.0,0.0004]
[1729010437760,0.075812,67203.0,67202.0,0.0054]
[1729010438166,0.076812,67203.0,67202.0,0.0194]
[1729010438354,0.0024,67203.0,67202.0,0.0194]
[1729010440355,0.0024,67203.0,67202.0,0.093813]
[1729010440860,0.0024,67203.0,67202.0,0.0194]
[1729010441461,0.0024,67203.0,67202.0,0.093813]
[1729010441651,0.001,67203.0,67202.0,0.093813]
[1729010442563,0.56433378,67215.0,67202.0,0.093813]
[1729010442564,0.00723478,67215.0,67211.0,0.074403]
[1729010442755,0.3608,67240.0,67211.0,0.695603]
[1729010443066,0.3608,67240.0,67239.0,0.2604]
[1729010443366,0.3608,67240.0,67239.0,0.0004]
[1729010443556,1.035171,67240.0,67239.0,0.0004]
[1729010443866,0.074376,67236.0,67224.0,0.3608]
[1729010444062,0.3608,67234.0,67224.0,0.435188]
[1729010444257,0.3608,67234.0,67227.0,0.074386]
[1729010444466,0.26,67231.0,67224.0,0.3608]
[1729010444656,0.3608,67234.0,67224.0,0.3608]
[1729010444657,0.26,67225.0,67224.0,0.3608]
[1729010444965,0.074392,67222.0,67212.0,0.074402]
[1729010445172,0.26,67215.0,67211.0,0.3612]
[1729010445463,0.3608,67218.0,67211.0,0.6352]
[1729010445669,0.38776715,67226.0,67225.0,0.074388]
[1729010445853,0.02696715,67226.0,67225.0,0.074788]
[1729010446054,0.3608,67232.0,67225.0,0.074788]
[1729010446264,0.3608,67232.0,67231.0,0.0004]
[1729010446767,0.9608,67232.0,67231.0,0.0004]
[1729010447565,0.3608,67232.0,67231.0,0.0004]
[1729010447873,1.407,67232.0,67231.0,0.0004]
[1729010448167,0.807,67232.0,67231.0,0.0004]
[1729010448357,0.3608,67232.0,67231.0,0.0004]
[1729010448761,0.3608,67232.0,67231.0,0.074781]
[1729010449067,0.2239,67239.0,67235.0,0.074376]
[1729010449367,0.2239,67239.0,67238.0,0.0004]
[1729010450161,0.3612,67240.0,67239.0,0.074372]
[1729010450465,0.3612,67240.0,67239.0,0.074772]
[1729010450668,0.0004,67240.0,67239.0,0.074772]
[1729010451270,0.0004,67240.0,67239.0,0.334772]
[1729010452170,0.0004,67240.0,67239.0,1.394932]
[1729010452670,0.0004,67240.0,67239.0,0.780932]
[1729010452859,0.0004,67240.0,67239.0,0.334772]
[1729010453059,0.0004,67240.0,67239.0,0.088772]
[1729010453263,0.0004,67240.0,67239.0,0.102772]
[1729010453665,0.2604,67240.0,67239.0,0.12892921]
[1729010453855,0.0004,67240.0,67239.0,0.12892921]
[1729010454066,0.0004,67240.0,67239.0,0.05455721]
[1729010454067,0.2604,67240.0,67239.0,0.05455721]
[1729010454267,0.334771,67240.0,67239.0,0.0284]
[1729010454568,0.2604,67240.0,67239.0,0.0154]
[1729010454768,0.0004,67240.0,67239.0,0.0154]
[1729010455365,0.6004,67240.0,67239.0,0.0154]
[1729010455566,0.0004,67240.0,67239.0,0.0154]
[1729010455866,0.0004,67240.0,67239.0,0.089772]
[1729010456170,0.0004,67240.0,67239.0,0.522932]
[1729010456364,0.0004,67240.0,67239.0,0.076772]
[1729010456871,0.0004,67240.0,67239.0,0.0024]
[1729010457781,0.0004,67240.0,67239.0,0.076772]
[1729010457964,0.0004,67240.0,67239.0,0.075772]
[1729010458268,0.1699799,67240.0,67239.0,0.076772]
[1729010458475,0.0004,67239.0,67238.0,0.074373]
[1729010458668,0.10561255,67239.0,67236.0,0.3608]
[1729010458863,0.31711519,67238.0,67236.0,0.3608]
[1729010459076,0.24550523,67237.0,67236.0,0.3608]
[1729010459273,0.26750461,67237.0,67236.0,0.3608]
[1729010459473,0.1695799,67237.0,67236.0,0.435176]
[1729010459777,0.10521255,67237.0,67236.0,0.074376]
[1729010460078,0.10521255,67237.0,67236.0,0.334376]
[1729010460380,0.13178348,67245.0,67237.0,0.44616]
[1729010460675,0.3608,67262.0,67244.0,0.6212]
[1729010460676,0.0268652,67253.0,67244.0,0.6212]
[1729010460864,0.3608,67262.0,67255.0,0.074354]
[1729010461065,0.3608,67262.0,67261.0,0.0004]
[1729010461270,0.3608,67262.0,67261.0,0.00015517]
[1729010461472,0.3608,67262.0,67244.0,0.3612]
[1729010461473,0.9608,67262.0,67244.0,0.0004]
[1729010461677,0.1330693,67253.0,67248.0,0.3608]
[1729010461872,0.0004,67253.0,67252.0,0.074358]
[1729010462078,0.0004,67253.0,67249.0,0.3608]
[1729010462272,0.074366,67245.0,67244.0,0.0004]
[1729010462473,0.435166,67245.0,67244.0,0.0004]
[1729010462674,1.40792,67245.0,67237.0,0.001]
[1729010462983,0.13265115,67239.0,67237.0,0.10262626]
[1729010463279,0.26,67238.0,67237.0,0.001]
[1729010463680,0.32127942,67238.0,67237.0,0.001]
[1729010463983,0.26,67238.0,67237.0,0.001]
[1729010464179,0.3608,67239.0,67235.0,0.074377]
[1729010464370,0.3608,67239.0,67238.0,0.0004]
[1729010464970,0.42203508,67239.0,67238.0,0.0004]
[1729010465485,0.80696,67239.0,67231.0,0.0004]
[1729010465668,0.26,67237.0,67231.0,0.0004]
[1729010465868,0.3612,67239.0,67231.0,0.0004]
[1729010465869,0.26,67232.0,67231.0,0.0004]
[1729010466280,0.31614137,67233.0,67232.0,0.07438]
[1729010466472,0.31614137,67233.0,67232.0,0.07478]
[1729010467382,0.31614137,67233.0,67232.0,0.0004]
[1729010467577,0.31614137,67233.0,67232.0,0.02674429]
[1729010467772,0.31614137,67233.0,67232.0,0.0004]
[1729010467987,0.31614137,67233.0,67225.0,0.0004]
[1729010467988,1.36274137,67233.0,67225.0,0.0004]
[1729010468192,1.36274137,67233.0,67225.0,0.074788]
[1729010468193,0.3608,67226.0,67225.0,0.074788]
[1729010468886,0.3608,67226.0,67225.0,0.0004]
[1729010469092,0.435187,67226.0,67225.0,0.0004]
[1729010469496,0.435187,67226.0,67217.0,0.0004]
[1729010469497,0.074393,67221.0,67217.0,0.0004]
[1729010469803,0.8506,67220.0,67217.0,0.0004]
[1729010470603,0.8506,67220.0,67217.0,0.04324831]
[1729010470604,0.435194,67219.0,67217.0,0.04324831]
[1729010470804,0.435194,67219.0,67217.0,0.0014]
[1729010470805,0.074395,67218.0,67217.0,0.0014]
[1729010471001,0.674395,67218.0,67217.0,0.0014]
[1729010471492,0.674395,67218.0,67211.0,0.0004]
[1729010471493,0.0744,67214.0,67212.0,0.04289601]
[1729010471697,0.695201,67213.0,67212.0,0.04289601]
[1729010471894,0.3608,67213.0,67212.0,0.334402]
[1729010472098,0.3608,67213.0,67212.0,0.39171417]
[1729010472403,0.3608,67213.0,67212.0,0.074402]
[1729010472609,0.3608,67213.0,67212.0,0.334402]
[1729010472822,0.3608,67213.0,67212.0,0.074402]
[1729010473112,0.3708,67213.0,67212.0,0.075402]
[1729010473707,0.3708,67213.0,67212.0,0.001]
[1729010474113,0.445201,67213.0,67212.0,0.001]
[1729010474312,0.446201,67213.0,67212.0,0.002]
[1729010474620,0.446201,67213.0,67192.0,0.02708801]
[1729010474621,0.074405,67210.0,67192.0,0.02708801]
[1729010474822,0.26,67193.0,67183.0,0.00223264]
[1729010475119,0.3608,67187.0,67183.0,0.00223264]
[1729010475508,0.3608,67187.0,67182.0,0.02672083]
[1729010475509,0.074431,67186.0,67182.0,0.02672083]
[1729010475714,0.3608,67187.0,67185.0,0.07459775]
[1729010475907,0.3608,67187.0,67186.0,0.0004]
[1729010476515,0.3608,67187.0,67186.0,0.074831]
[1729010476816,0.3608,67187.0,67186.0,0.0004]
[1729010477006,1.40732,67187.0,67181.0,0.0004]
[1729010477204,0.26,67182.0,67163.0,0.3608]
[1729010477412,0.26,67167.0,67156.0,0.26]
[1729010477614,0.435254,67165.0,67148.0,0.26]
[1729010477820,0.435254,67165.0,67158.0,0.02685282]
[1729010478010,0.074461,67159.0,67158.0,0.0004]
[1729010478212,1.481934,67165.0,67158.0,0.0004]
[1729010478213,0.3612,67165.0,67158.0,0.0004]
[1729010478516,0.3612,67165.0,67164.0,0.348855]
[1729010478716,0.3642,67165.0,67164.0,0.349855]
[1729010478922,0.3642,67165.0,67164.0,0.0154]
[1729010479125,0.81128,67165.0,67158.0,0.0004]
[1729010479414,0.074459,67161.0,67158.0,0.0024]
[1729010479817,0.435261,67159.0,67158.0,0.0024]
[1729010480239,0.26,67154.0,67144.0,0.02734288]
[1729010480522,0.074466,67155.0,67148.0,0.074472]
[1729010480818,0.074471,67150.0,67146.0,0.334475]
[1729010481122,0.3612,67159.0,67146.0,0.26]
[1729010481319,0.3612,67159.0,67158.0,0.0004]
[1729010481519,0.3612,67159.0,67158.0,0.074862]
[1729010481520,0.0004,67159.0,67158.0,0.074862]
[1729010481724,0.0148,67165.0,67158.0,0.0004]
[1729010481915,0.0008,67165.0,67163.0,0.196755]
[1729010482115,0.0008,67165.0,67164.0,0.074855]
[1729010482516,0.074453,67167.0,67164.0,0.074855]
[1729010482716,0.074453,67167.0,67166.0,0.0004]
[1729010483220,1.381093,67167.0,67166.0,0.0004]
[1729010485023,0.088453,67167.0,67166.0,0.0004]
[1729010485320,0.352453,67167.0,67166.0,0.0014]
[1729010485516,1.399093,67167.0,67166.0,0.0014]
[1729010485715,0.352453,67167.0,67166.0,0.0014]
[1729010485919,1.399093,67167.0,67166.0,0.0014]
[1729010486120,0.074461,67159.0,67158.0,0.0004]
[1729010486427,0.334461,67159.0,67158.0,0.0004]
[1729010486928,0.26,67159.0,67145.0,0.0004]
[1729010487126,0.074476,67145.0,67144.0,1e-08]
[1729010487320,0.674476,67145.0,67144.0,1e-08]
[1729010487625,1.381276,67145.0,67144.0,1e-08]
[1729010487828,1.381276,67145.0,67124.0,0.3608]
[1729010488034,0.074505,67119.0,67118.0,0.0004]
[1729010488328,0.695305,67119.0,67118.0,0.0004]
[1729010488528,1.742265,67119.0,67118.0,0.0004]
[1729010488827,0.074519,67107.0,67106.0,0.0004]
[1729010489021,0.3608,67110.0,67106.0,0.0004]
[1729010489219,0.0004,67113.0,67109.0,0.074916]
[1729010489419,0.0004,67113.0,67110.0,0.074515]
[1729010489615,0.0004,67113.0,67112.0,0.0004]
[1729010489815,0.0004,67113.0,67112.0,0.074913]
[1729010491322,0.0004,67113.0,67112.0,0.435713]
[1729010491525,0.0144,67119.0,67112.0,0.435713]
[1729010491526,0.0284,67119.0,67118.0,0.074506]
[1729010491723,0.2274,67142.0,67118.0,0.7612]
[1729010491924,0.074484,67138.0,67131.0,0.074892]
[1729010492424,0.2274,67142.0,67132.0,0.074491]
[1729010492629,0.3608,67145.0,67132.0,0.074891]
[1729010492822,0.0004,67146.0,67132.0,1.04728]
[1729010493022,0.0004,67146.0,67145.0,0.435276]
[1729010493425,0.0004,67146.0,67145.0,0.435676]
[1729010494319,1.408,67146.0,67145.0,0.0004]
[1729010494517,0.3616,67146.0,67132.0,0.0004]
[1729010494725,0.3616,67146.0,67139.0,0.074483]
[1729010494726,0.3608,67140.0,67139.0,0.074483]
[1729010494928,0.075276,67146.0,67135.0,0.3608]
[1729010495237,0.075276,67146.0,67145.0,0.074876]
[1729010495238,0.0008,67146.0,67145.0,0.074876]
[1729010495431,0.0008,67146.0,67145.0,0.0014]
[1729010495432,0.0028,67146.0,67145.0,0.0014]
[1729010495625,0.3636,67146.0,67145.0,0.0014]
[1729010495825,0.438075,67146.0,67145.0,0.0014]
[1729010496020,0.436075,67146.0,67145.0,0.0004]
[1729010496631,0.3608,67146.0,67145.0,0.0014]
[1729010497136,0.3608,67146.0,67145.0,0.0154]
[1729010497324,0.435275,67146.0,67145.0,0.0154]
[1729010497525,0.07449,67133.0,67132.0,0.0004]
[1729010497725,0.47449,67133.0,67132.0,0.0004]
[1729010499222,0.074491,67132.0,67131.0,0.0004]
[1729010499422,0.074491,67132.0,67117.0,0.36303469]
[1729010499423,0.074505,67120.0,67117.0,0.36303469]
[1729010499725,0.521771,67132.0,67117.0,0.00223469]
[1729010499726,0.474505,67119.0,67117.0,0.00223469]
[1729010500027,0.074512,67113.0,67112.0,0.0004]
[1729010500223,0.835312,67113.0,67112.0,0.0004]
[1729010501532,0.7608,67113.0,67112.0,0.0004]
[1729010501832,0.3608,67113.0,67112.0,0.0004]
[1729010502032,0.7748,67113.0,67112.0,0.0004]
[1729010502224,0.853312,67113.0,67112.0,0.0014]
[1729010502428,0.853312,67113.0,67096.0,0.07453]
[1729010502429,0.7788,67113.0,67096.0,0.07453]
[1729010502625,0.4,67101.0,67100.0,0.074526]
[1729010502928,0.4,67101.0,67092.0,0.36196]
[1729010502929,0.3608,67104.0,67103.0,0.074523]
[1729010503236,0.3608,67104.0,67103.0,0.074923]
[1729010503435,0.3608,67104.0,67103.0,0.0004]
[1729010503636,0.3608,67104.0,67089.0,0.0572031]
[1729010503637,0.3608,67104.0,67080.0,0.07141152]
[1729010503836,0.3608,67104.0,67054.0,0.0004]
[1729010503837,0.3608,67081.0,67057.0,0.00116]
[1729010504041,0.4,67075.0,67067.0,0.3612]
[1729010504334,0.3608,67071.0,67068.0,0.48949661]
[1729010504535,0.3608,67071.0,67067.0,0.02687295]
[1729010504536,0.3608,67069.0,67050.0,0.08675707]
[1729010504734,0.3608,67069.0,67033.0,0.11540585]
[1729010504735,0.7216,67051.0,67036.0,0.074597]
[1729010504935,0.7608,67037.0,67036.0,0.074597]
[1729010505826,0.7608,67037.0,67008.0,0.44755707]
[1729010506142,0.7608,67037.0,67002.0,0.00223867]
[1729010506143,0.7608,67024.0,67013.0,0.074622]
[1729010506452,0.7608,67014.0,67008.0,0.0012]
[1729010506639,0.3608,67009.0,67008.0,0.0012]
[1729010506828,0.31599586,67009.0,67008.0,0.074629]
[1729010507138,0.3608,67023.0,67022.0,0.074613]
[1729010507326,0.36093777,67023.0,67022.0,0.475013]
[1729010507533,0.36093777,67023.0,67022.0,1.522613]
[1729010507738,0.3608,67028.0,67027.0,0.074607]
[1729010508237,0.3608,67028.0,67027.0,1.122567]
[1729010508541,0.3608,67028.0,67027.0,0.075007]
[1729010509336,0.3748,67028.0,67027.0,0.076007]
[1729010509535,0.3608,67037.0,67036.0,0.074597]
[1729010510144,0.3608,67037.0,67036.0,0.074997]
[1729010510834,0.3748,67037.0,67036.0,0.074997]
[1729010511642,0.3608,67043.0,67036.0,1.0004]
[1729010511830,0.28616608,67043.0,67041.0,0.074592]
[1729010512030,0.28616608,67043.0,67042.0,0.0004]
[1729010513037,0.28616608,67043.0,67042.0,0.0014]
[1729010513239,0.30016608,67043.0,67042.0,0.0014]
[1729010514039,0.90016608,67043.0,67042.0,0.0144]
[1729010514241,0.90016608,67043.0,67027.0,0.0004]
[1729010514242,1.34864608,67043.0,67027.0,0.0004]
[1729010514441,0.7216,67028.0,67006.0,0.074631]
[1729010514648,0.44752,67042.0,67006.0,0.074631]
[1729010514649,0.3608,67008.0,67006.0,0.074631]
[1729010515142,0.3608,67008.0,66991.0,0.4]
[1729010515339,0.3608,66999.0,66997.0,0.074641]
[1729010516245,0.3608,66999.0,66991.0,0.02639613]
[1729010516452,0.4,66996.0,66988.0,0.074651]
[1729010516839,1.0,66996.0,66988.0,0.074651]
[1729010517545,0.3658,66999.0,66989.0,0.074649]
[1729010517747,0.3608,66990.0,66989.0,0.074649]
[1729010519047,0.014,66996.0,66995.0,0.074643]
[1729010519347,0.3668,66999.0,66998.0,0.07464]
[1729010519348,0.32852194,66999.0,66998.0,0.07464]
[1729010519546,0.32252194,66999.0,66998.0,0.07504]
[1729010520439,0.3608,67007.0,67006.0,0.074631]
[1729010520637,0.7608,67019.0,67006.0,1.075031]
[1729010520638,0.36156,67019.0,67006.0,1.075031]
[1729010520946,0.4,67038.0,67012.0,0.7612]
[1729010520947,0.7608,67038.0,67012.0,0.7612]
[1729010521245,0.7608,67038.0,67037.0,0.0004]
[1729010521246,0.3608,67038.0,67037.0,0.0004]
[1729010522048,0.3608,67046.0,67040.0,0.074593]
[1729010522248,0.3608,67046.0,67037.0,0.0004]
[1729010522547,0.3608,67046.0,67045.0,0.0004]
[1729010523052,0.36303867,67052.0,67045.0,0.0004]
[1729010523236,0.7608,67046.0,67040.0,0.014]
[1729010523436,0.4,67041.0,67040.0,0.014]
[1729010524549,1.12444,67046.0,67040.0,0.014]
[1729010524746,0.402,67046.0,67045.0,0.0004]
[1729010525148,0.7628,67046.0,67045.0,0.0004]
[1729010525449,0.7618,67046.0,67037.0,0.0134]
[1729010525659,0.7608,67038.0,67037.0,0.087996]
[1729010525858,0.4,67043.0,67037.0,0.0134]
[1729010526150,0.00223867,67052.0,67046.0,0.074586]
[1729010526354,0.4,67050.0,67045.0,0.001]
[1729010526556,0.4,67050.0,67049.0,0.074583]
[1729010526854,0.30298676,67050.0,67049.0,0.074583]
[1729010527349,0.30298676,67050.0,67042.0,0.0004]
[1729010527646,0.4,67044.0,67042.0,0.07499]
[1729010527853,0.3608,67043.0,67042.0,0.0004]
[1729010528043,0.43539,67043.0,67042.0,0.0004]
[1729010528242,0.43539,67043.0,67037.0,0.0024]
[1729010528243,0.074595,67038.0,67037.0,0.0024]
[1729010528443,0.4,67038.0,67037.0,0.0024]
[1729010528648,0.4,67038.0,67037.0,0.0014]
[1729010529454,0.841395,67038.0,67037.0,0.0014]
[1729010529650,1.441395,67038.0,67037.0,0.0014]
[1729010529856,1.888915,67038.0,67037.0,0.0014]
[1729010530053,0.841395,67038.0,67037.0,0.0014]
[1729010530355,0.855395,67038.0,67037.0,0.0024]
[1729010530554,1.902915,67038.0,67037.0,0.0024]
[1729010530746,0.855395,67038.0,67037.0,0.0024]
[1729010531150,1.889915,67038.0,67021.0,0.074614]
[1729010531448,0.4,67023.0,67010.0,0.3608]
[1729010531659,0.4,67028.0,67025.0,0.07461]
[1729010531844,0.4,67028.0,67013.0,0.074623]
[1729010531845,0.4,67028.0,67027.0,0.0004]
[1729010532043,0.474606,67028.0,67027.0,0.0004]
[1729010532244,0.922166,67028.0,67027.0,0.0004]
[1729010532656,0.474606,67028.0,67027.0,0.0004]
[1729010532852,0.074618,67018.0,67012.0,0.00263844]
[1729010533056,0.074623,67013.0,67012.0,0.0004]
[1729010533552,0.3608,67021.0,67020.0,0.074615]
[1729010533852,0.40223901,67027.0,67020.0,0.0004]
[1729010534247,0.40223901,67027.0,67026.0,0.0004]
[1729010534448,0.00223901,67027.0,67026.0,0.075009]
[1729010536553,0.00923901,67027.0,67026.0,0.076009]
[1729010536753,0.00923901,67027.0,67026.0,0.077009]
[1729010536963,0.00923901,67027.0,67026.0,0.0014]
[1729010536964,0.49084601,67027.0,67026.0,0.0014]
[1729010537258,0.49784601,67027.0,67026.0,0.0024]
[1729010537454,0.495607,67027.0,67026.0,0.0024]
[1729010537763,0.495607,67027.0,67026.0,0.077009]
[1729010537764,0.021,67027.0,67026.0,0.077009]
[1729010537947,0.00223863,67041.0,67026.0,0.077009]
[1729010537948,0.00223863,67041.0,67040.0,0.074593]
[1729010538252,0.00223863,67041.0,67040.0,0.074993]
[1729010538458,0.00223863,67041.0,67040.0,0.0004]
[1729010538758,0.00223863,67041.0,67040.0,0.074993]
[1729010539256,0.07683063,67041.0,67040.0,0.0004]
[1729010539455,0.00223863,67041.0,67040.0,0.0004]
[1729010539657,0.07683063,67041.0,67040.0,0.0004]
[1729010540050,0.00223863,67041.0,67040.0,0.074993]
[1729010540249,0.00223863,67041.0,67040.0,0.102993]
[1729010540250,0.00423863,67041.0,67040.0,0.102993]
[1729010540643,0.00323863,67041.0,67040.0,0.088993]
[1729010540844,0.01023863,67041.0,67040.0,0.089993]
[1729010541047,0.016,67041.0,67040.0,0.076993]
[1729010543049,0.090592,67041.0,67040.0,0.0024]
[1729010543251,0.016,67041.0,67040.0,0.0024]
[1729010543452,0.016,67041.0,67040.0,0.076993]
[1729010543759,0.090592,67041.0,67040.0,0.0024]
[1729010544458,0.016,67041.0,67040.0,0.0024]
[1729010544755,0.016,67041.0,67040.0,0.076993]
[1729010544960,0.4,67045.0,67040.0,0.0024]
[1729010545153,0.474588,67045.0,67043.0,0.074589]
[1729010545351,0.4,67045.0,67044.0,0.074989]
[1729010545750,0.4,67045.0,67044.0,0.0004]
[1729010546153,0.4,67045.0,67044.0,0.074989]
[1729010546455,0.475587,67045.0,67044.0,0.074989]
[1729010546858,0.41,67045.0,67044.0,0.074989]
[1729010547053,0.41,67045.0,67044.0,0.075989]
[1729010547851,0.38,67045.0,67044.0,0.075989]
[1729010548052,0.01,67045.0,67044.0,0.075989]
[1729010548352,0.32602007,67046.0,67045.0,0.074587]
[1729010548555,0.32602007,67046.0,67045.0,0.074987]
[1729010548956,0.32602007,67046.0,67045.0,0.0004]
[1729010549154,0.40060607,67046.0,67045.0,0.0004]
[1729010549864,0.40060607,67046.0,67045.0,0.074987]
[1729010550059,0.40060607,67046.0,67045.0,0.075987]
[1729010550462,0.3608,67052.0,67045.0,0.075987]
[1729010550667,0.3608,67052.0,67051.0,0.074981]
[1729010550959,0.0026381,67055.0,67051.0,0.0004]
[1729010551168,0.0026381,67055.0,67054.0,0.0004]
[1729010551354,0.0772141,67055.0,67054.0,0.0004]
[1729010551762,0.074586,67046.0,67045.0,0.0014]
[1729010551958,0.835386,67046.0,67045.0,0.0014]
[1729010552265,0.4,67054.0,67053.0,0.074579]
[1729010552465,0.4,67054.0,67053.0,0.0004]
[1729010552660,0.474577,67054.0,67053.0,0.0004]
[1729010553551,0.474577,67054.0,67053.0,0.0014]
[1729010553752,0.474577,67054.0,67053.0,0.0024]
[1729010553966,0.474577,67054.0,67053.0,0.0014]
[1729010554164,0.474577,67054.0,67053.0,0.0024]
[1729010556262,0.474577,67054.0,67053.0,0.0014]
[1729010556461,0.474577,67054.0,67053.0,0.0024]
[1729010558456,0.474577,67054.0,67053.0,0.0014]
[1729010558660,0.474577,67054.0,67053.0,0.0024]
[1729010559070,1.435377,67054.0,67053.0,0.0014]
[1729010559271,1.435377,67054.0,67035.0,0.07188565]
[1729010559272,0.074592,67041.0,67035.0,0.07188565]
[1729010559565,0.074592,67041.0,67026.0,0.0004]
[1729010559566,0.435392,67041.0,67036.0,0.02668176]
[1729010559765,0.3608,67041.0,67036.0,0.02668176]
[1729010559961,0.074587,67046.0,67043.0,0.074589]
[1729010560266,0.074586,67046.0,67045.0,0.0004]
[1729010560562,0.7608,67047.0,67045.0,0.0004]
[1729010560563,0.36156,67047.0,67045.0,0.0004]
[1729010560763,0.3608,67047.0,67046.0,0.074986]
[1729010561169,0.3608,67054.0,67046.0,0.0004]
[1729010561362,0.3608,67054.0,67053.0,0.074979]
[1729010561668,0.3608,67054.0,67053.0,0.0004]
[1729010561866,0.435377,67054.0,67053.0,0.0004]
[1729010562258,0.435377,67054.0,67053.0,0.074979]
[1729010562458,0.435377,67054.0,67053.0,0.0004]
[1729010563064,0.435377,67054.0,67053.0,0.0014]
[1729010563464,0.435377,67054.0,67053.0,0.0024]
[1729010563872,0.435377,67054.0,67053.0,0.08639146]
[1729010563873,0.3608,67054.0,67053.0,0.08639146]
[1729010564062,0.695377,67054.0,67053.0,0.0024]
[1729010564468,0.695377,67054.0,67053.0,0.13474523]
[1729010564668,0.695377,67054.0,67053.0,0.076979]
[1729010564669,0.3608,67054.0,67053.0,0.076979]
[1729010564972,0.3608,67054.0,67053.0,0.0014]
[1729010565271,0.435377,67054.0,67053.0,0.06018973]
[1729010565469,0.3608,67054.0,67053.0,0.0024]
[1729010565861,0.435377,67054.0,67053.0,0.0024]
[1729010566265,0.435377,67054.0,67053.0,0.0592058]
[1729010566575,0.435377,67054.0,67053.0,0.0024]
[1729010566874,0.435377,67054.0,67046.0,0.0004]
[1729010566875,1.742777,67054.0,67046.0,0.0004]
[1729010567061,0.074586,67046.0,67045.0,0.0004]
[1729010567265,0.334592,67041.0,67035.0,0.07188565]
[1729010567467,0.695392,67041.0,67035.0,0.07188565]
[1729010567665,0.695392,67041.0,67034.0,0.07188565]
[1729010567666,1.742872,67041.0,67034.0,0.07188565]
[1729010567874,1.142872,67041.0,67033.0,0.07188565]
[1729010568274,0.3608,67041.0,67038.0,0.07188565]
[1729010568461,0.3608,67041.0,67039.0,0.07188565]
[1729010568462,0.31601455,67041.0,67039.0,0.07188565]
[1729010568664,0.31601455,67041.0,67032.0,0.3608]
[1729010568665,0.435386,67047.0,67045.0,0.074586]
[1729010568867,0.3608,67047.0,67046.0,0.08983621]
[1729010569065,0.435385,67047.0,67046.0,0.09023621]
[1729010569270,0.38314279,67047.0,67046.0,0.09023621]
[1729010569777,0.38314279,67047.0,67046.0,0.16260072]
[1729010569967,0.38314279,67047.0,67046.0,0.0004]
[1729010570164,0.30855779,67047.0,67046.0,0.07376451]
[1729010570368,0.30855779,67047.0,67046.0,0.23748962]
[1729010570663,0.30855779,67047.0,67040.0,0.38967587]
[1729010570664,0.46046809,67047.0,67041.0,0.26]
[1729010570866,0.28597205,67046.0,67041.0,0.26]
[1729010571065,0.44261954,67047.0,67046.0,0.075586]
[1729010571265,0.59503207,67047.0,67046.0,0.075986]
[1729010571467,0.46097032,67047.0,67046.0,0.075986]
[1729010571663,0.46097032,67047.0,67046.0,0.437786]
[1729010571664,0.28568555,67047.0,67046.0,0.437786]
[1729010571875,0.09456139,67047.0,67046.0,0.437786]
[1729010572078,0.35385362,67047.0,67046.0,0.437786]
[1729010572266,0.78923862,67047.0,67046.0,0.075986]
[1729010572467,0.42843862,67047.0,67046.0,0.0024]
[1729010572664,0.42843862,67047.0,67046.0,0.0014]
[1729010572873,0.42843862,67047.0,67046.0,0.074986]
[1729010572874,0.35385362,67047.0,67046.0,0.074986]
[1729010573175,0.16843862,67047.0,67046.0,0.075986]
[1729010573375,0.16843862,67047.0,67046.0,0.0014]
[1729010573569,0.16843862,67047.0,67046.0,0.0024]
[1729010573763,0.09385362,67047.0,67046.0,0.076986]
[1729010573965,0.09385362,67047.0,67046.0,0.437786]
[1729010573966,0.0434297,67047.0,67046.0,0.437786]
[1729010574174,0.074579,67053.0,67051.0,0.07458]
[1729010574466,0.0504958,67052.0,67046.0,0.0014]
[1729010574667,0.26,67047.0,67046.0,0.109786]
[1729010574880,0.0504958,67047.0,67046.0,0.0348]
[1729010575178,0.1574808,67047.0,67046.0,0.0348]
[1729010575578,0.4174808,67047.0,67046.0,0.0348]
[1729010575970,0.4174808,67047.0,67046.0,0.0338]
[1729010576277,0.4174808,67047.0,67046.0,0.0348]
[1729010576772,1.4649208,67047.0,67046.0,0.0348]
[1729010576980,1.49114494,67047.0,67046.0,0.0348]
[1729010577372,0.44370494,67047.0,67046.0,0.0348]
[1729010577678,0.89114494,67047.0,67046.0,0.0348]
[1729010577872,0.89114494,67047.0,67025.0,0.00223776]
[1729010577873,0.074604,67030.0,67025.0,0.00223776]
[1729010578071,0.2604,67026.0,67025.0,0.07684676]
[1729010578673,0.2604,67026.0,67025.0,0.09242165]
[1729010578873,0.695809,67026.0,67025.0,0.16703165]
[1729010579070,0.6212,67026.0,67025.0,0.16803165]
[1729010579270,0.695809,67026.0,67025.0,0.09118389]
[1729010579573,0.335009,67026.0,67025.0,0.07334321]
[1729010579778,0.335009,67026.0,67025.0,0.16353638]
[1729010579987,0.335009,67026.0,67025.0,0.07334321]